Workbook

Sheet Дети 3-7 лет
B1: МБДОУ д/с № 362
A2: Прием пищи | B2: Блюдо | C2: Выход | D2: Калорийность | E2: Белки | F2: Жиры | G2: Углеводы
A3: Завтрак | B3: ='[1]Дневной рацион, Дети 3-7 лет, '!D4 -> Каша вязкая молочная ячневая . | C3: ='[1]Дневной рацион, Дети 3-7 лет, '!E4 -> 201 | D3: ='[1]Дневной рацион, Дети 3-7 лет, '!F4 -> 0 | E3: ='[1]Дневной рацион, Дети 3-7 лет, '!G4 -> 295.671 | F3: ='[1]Дневной рацион, Дети 3-7 лет, '!H4 -> 8.342 | G3: ='[1]Дневной рацион, Дети 3-7 лет, '!I4 -> 12.663
B4: ='[1]Дневной рацион, Дети 3-7 лет, '!D5 -> Бутерброды (батон) с маслом . | C4: ='[1]Дневной рацион, Дети 3-7 лет, '!E5 -> 35 | D4: ='[1]Дневной рацион, Дети 3-7 лет, '!F5 -> 0 | E4: ='[1]Дневной рацион, Дети 3-7 лет, '!G5 -> 146 | F4: ='[1]Дневной рацион, Дети 3-7 лет, '!H5 -> 1.6 | G4: ='[1]Дневной рацион, Дети 3-7 лет, '!I5 -> 11
B5: ='[1]Дневной рацион, Дети 3-7 лет, '!D6 -> КОФЕЙНЫЙ НАПИТОК С МОЛОКОМ . | C5: ='[1]Дневной рацион, Дети 3-7 лет, '!E6 -> 200 | D5: ='[1]Дневной рацион, Дети 3-7 лет, '!F6 -> 0 | E5: ='[1]Дневной рацион, Дети 3-7 лет, '!G6 -> 58.9 | F5: ='[1]Дневной рацион, Дети 3-7 лет, '!H6 -> 2.3 | G5: ='[1]Дневной рацион, Дети 3-7 лет, '!I6 -> 1.9
A6: Завтрак №2 | B6: ='[3]Дневной рацион, Дети 3-7 лет, '!D7 -> Соки овощные, фруктовые и ягодные. | C6: ='[3]Дневной рацион, Дети 3-7 лет, '!E7 -> 200
B8: ='[1]Дневной рацион, Дети 3-7 лет, '!D7 -> Рассольник ленинградский со сметаной . | C8: ='[1]Дневной рацион, Дети 3-7 лет, '!E7 -> 197 | D8: ='[1]Дневной рацион, Дети 3-7 лет, '!F7 -> 0 | E8: ='[1]Дневной рацион, Дети 3-7 лет, '!G7 -> 123.638 | F8: ='[1]Дневной рацион, Дети 3-7 лет, '!H7 -> 4.669 | G8: ='[1]Дневной рацион, Дети 3-7 лет, '!I7 -> 5.713
B9: ='[1]Дневной рацион, Дети 3-7 лет, '!D8 -> Соус красный основной . | C9: ='[1]Дневной рацион, Дети 3-7 лет, '!E8 -> 31 | D9: ='[1]Дневной рацион, Дети 3-7 лет, '!F8 -> 0 | E9: ='[1]Дневной рацион, Дети 3-7 лет, '!G8 -> 22.816 | F9: ='[1]Дневной рацион, Дети 3-7 лет, '!H8 -> 1.023 | G9: ='[1]Дневной рацион, Дети 3-7 лет, '!I8 -> 0.837
A10: Обед | B10: ='[1]Дневной рацион, Дети 3-7 лет, '!D9 -> Пюре картофельное . | C10: ='[1]Дневной рацион, Дети 3-7 лет, '!E9 -> 100 | D10: ='[1]Дневной рацион, Дети 3-7 лет, '!F9 -> 0 | E10: ='[1]Дневной рацион, Дети 3-7 лет, '!G9 -> 143.91 | F10: ='[1]Дневной рацион, Дети 3-7 лет, '!H9 -> 2.728 | G10: ='[1]Дневной рацион, Дети 3-7 лет, '!I9 -> 5.182
B11: ='[1]Дневной рацион, Дети 3-7 лет, '!D10 -> Компот из сушеных фруктов (изюм). | C11: ='[1]Дневной рацион, Дети 3-7 лет, '!E10 -> 197 | D11: ='[1]Дневной рацион, Дети 3-7 лет, '!F10 -> 0 | E11: ='[1]Дневной рацион, Дети 3-7 лет, '!G10 -> 20.134 | F11: ='[1]Дневной рацион, Дети 3-7 лет, '!H10 -> 0.355 | G11: ='[1]Дневной рацион, Дети 3-7 лет, '!I10 -> 0.02
B12: ='[1]Дневной рацион, Дети 3-7 лет, '!D11 -> Котлеты рыбные запеченные . | C12: ='[1]Дневной рацион, Дети 3-7 лет, '!E11 -> 81 | D12: ='[1]Дневной рацион, Дети 3-7 лет, '!F11 -> 0 | E12: ='[1]Дневной рацион, Дети 3-7 лет, '!G11 -> 81.507 | F12: ='[1]Дневной рацион, Дети 3-7 лет, '!H11 -> 8.91 | G12: ='[1]Дневной рацион, Дети 3-7 лет, '!I11 -> 3.443
B13: ='[1]Дневной рацион, Дети 3-7 лет, '!D12 -> Хлеб пшеничный | C13: ='[1]Дневной рацион, Дети 3-7 лет, '!E12 -> 40 | D13: ='[1]Дневной рацион, Дети 3-7 лет, '!F12 -> 0 | E13: ='[1]Дневной рацион, Дети 3-7 лет, '!G12 -> 0 | F13: ='[1]Дневной рацион, Дети 3-7 лет, '!H12 -> 0 | G13: ='[1]Дневной рацион, Дети 3-7 лет, '!I12 -> 0
B14: ='[1]Дневной рацион, Дети 3-7 лет, '!D13 -> Хлеб ржаной | C14: ='[1]Дневной рацион, Дети 3-7 лет, '!E13 -> 39 | D14: ='[1]Дневной рацион, Дети 3-7 лет, '!F13 -> 0 | E14: ='[1]Дневной рацион, Дети 3-7 лет, '!G13 -> 0 | F14: ='[1]Дневной рацион, Дети 3-7 лет, '!H13 -> 0 | G14: ='[1]Дневной рацион, Дети 3-7 лет, '!I13 -> 0
A16: Полдник | B16: ='[3]Дневной рацион, Дети 3-7 лет, '!D15 -> Снежок | C16: ='[3]Дневной рацион, Дети 3-7 лет, '!E15 -> 179 | D16: ='[1]Дневной рацион, Дети 3-7 лет, '!F14 -> 0 | E16: ='[1]Дневной рацион, Дети 3-7 лет, '!G14 -> 215.94 | F16: ='[1]Дневной рацион, Дети 3-7 лет, '!H14 -> 3.481 | G16: ='[1]Дневной рацион, Дети 3-7 лет, '!I14 -> 0
B17: ='[3]Дневной рацион, Дети 3-7 лет, '!D16 -> Печенье весовое | C17: ='[3]Дневной рацион, Дети 3-7 лет, '!E16 -> 39 | D17: ='[1]Дневной рацион, Дети 3-7 лет, '!F15 -> 0 | E17: ='[1]Дневной рацион, Дети 3-7 лет, '!G15 -> 95.4 | F17: ='[1]Дневной рацион, Дети 3-7 лет, '!H15 -> 5.22 | G17: ='[1]Дневной рацион, Дети 3-7 лет, '!I15 -> 4.5
A19: Ужин | B19: ='[1]Дневной рацион, Дети 3-7 лет, '!D16 -> Горошница с маслом. | C19: ='[1]Дневной рацион, Дети 3-7 лет, '!E16 -> 151 | D19: ='[1]Дневной рацион, Дети 3-7 лет, '!F16 -> 0 | E19: ='[1]Дневной рацион, Дети 3-7 лет, '!G16 -> 206.166 | F19: ='[1]Дневной рацион, Дети 3-7 лет, '!H16 -> 14.597 | G19: ='[1]Дневной рацион, Дети 3-7 лет, '!I16 -> 1.309
B20: ='[1]Дневной рацион, Дети 3-7 лет, '!D17 -> Хлеб пшеничный | C20: ='[1]Дневной рацион, Дети 3-7 лет, '!E17 -> 20 | D20: ='[1]Дневной рацион, Дети 3-7 лет, '!F17 -> 0 | E20: ='[1]Дневной рацион, Дети 3-7 лет, '!G17 -> 0 | F20: ='[1]Дневной рацион, Дети 3-7 лет, '!H17 -> 0 | G20: ='[1]Дневной рацион, Дети 3-7 лет, '!I17 -> 0
B21: ='[3]Дневной рацион, Дети 3-7 лет, '!D18 -> Напиток клюквенный. | C21: ='[3]Дневной рацион, Дети 3-7 лет, '!E18 -> 198 | D21: ='[1]Дневной рацион, Дети 3-7 лет, '!F18 -> 0 | E21: ='[1]Дневной рацион, Дети 3-7 лет, '!G18 -> 35.223 | F21: ='[1]Дневной рацион, Дети 3-7 лет, '!H18 -> 0.299 | G21: ='[1]Дневной рацион, Дети 3-7 лет, '!I18 -> 0.1
B22: ='[1]Дневной рацион, Дети 3-7 лет, '!D19 -> 0 | C22: ='[1]Дневной рацион, Дети 3-7 лет, '!E19 -> 0 | D22: ='[1]Дневной рацион, Дети 3-7 лет, '!F19 -> 0 | E22: ='[1]Дневной рацион, Дети 3-7 лет, '!G19 -> 0 | F22: ='[1]Дневной рацион, Дети 3-7 лет, '!H19 -> 0 | G22: ='[1]Дневной рацион, Дети 3-7 лет, '!I19 -> 0

Sheet Дети до 3-лет
A3: Прием пищи | B3: Блюдо | C3: Выход | D3: Калорийность | E3: Белки | F3: Жиры | G3: Углеводы
A4: Завтрак | B4: ='[2]Дневной рацион, Дети до 3х лет'!D4 -> Каша вязкая молочная ячневая . | C4: ='[2]Дневной рацион, Дети до 3х лет'!E4 -> 171 | D4: ='[2]Дневной рацион, Дети до 3х лет'!F4 -> 0 | E4: ='[2]Дневной рацион, Дети до 3х лет'!G4 -> 251.541 | F4: ='[2]Дневной рацион, Дети до 3х лет'!H4 -> 7.097 | G4: ='[2]Дневной рацион, Дети до 3х лет'!I4 -> 10.773
B5: ='[2]Дневной рацион, Дети до 3х лет'!D5 -> Бутерброды (батон) с маслом . | C5: ='[2]Дневной рацион, Дети до 3х лет'!E5 -> 35 | D5: ='[2]Дневной рацион, Дети до 3х лет'!F5 -> 0 | E5: ='[2]Дневной рацион, Дети до 3х лет'!G5 -> 146 | F5: ='[2]Дневной рацион, Дети до 3х лет'!H5 -> 1.6 | G5: ='[2]Дневной рацион, Дети до 3х лет'!I5 -> 11
B6: ='[2]Дневной рацион, Дети до 3х лет'!D6 -> КОФЕЙНЫЙ НАПИТОК С МОЛОКОМ . | C6: ='[2]Дневной рацион, Дети до 3х лет'!E6 -> 170 | D6: ='[2]Дневной рацион, Дети до 3х лет'!F6 -> 0 | E6: ='[2]Дневной рацион, Дети до 3х лет'!G6 -> 50.065 | F6: ='[2]Дневной рацион, Дети до 3х лет'!H6 -> 1.955 | G6: ='[2]Дневной рацион, Дети до 3х лет'!I6 -> 1.615
A7: Завтрак №2 | B7: ='[3]Дневной рацион, Дети 3-7 лет, '!D7 -> Соки овощные, фруктовые и ягодные. | C7: ='[3]Дневной рацион, Дети 3-7 лет, '!E7 -> 200
B9: ='[2]Дневной рацион, Дети до 3х лет'!D7 -> Рассольник ленинградский со сметаной . | C9: ='[2]Дневной рацион, Дети до 3х лет'!E7 -> 177 | D9: ='[2]Дневной рацион, Дети до 3х лет'!F7 -> 0 | E9: ='[2]Дневной рацион, Дети до 3х лет'!G7 -> 111.086 | F9: ='[2]Дневной рацион, Дети до 3х лет'!H7 -> 4.195 | G9: ='[2]Дневной рацион, Дети до 3х лет'!I7 -> 5.133
A10: Обед | B10: ='[2]Дневной рацион, Дети до 3х лет'!D8 -> Соус красный основной . | C10: ='[2]Дневной рацион, Дети до 3х лет'!E8 -> 20 | D10: ='[2]Дневной рацион, Дети до 3х лет'!F8 -> 0 | E10: ='[2]Дневной рацион, Дети до 3х лет'!G8 -> 14.72 | F10: ='[2]Дневной рацион, Дети до 3х лет'!H8 -> 0.66 | G10: ='[2]Дневной рацион, Дети до 3х лет'!I8 -> 0.54
B11: ='[2]Дневной рацион, Дети до 3х лет'!D9 -> Пюре картофельное . | C11: ='[2]Дневной рацион, Дети до 3х лет'!E9 -> 82 | D11: ='[2]Дневной рацион, Дети до 3х лет'!F9 -> 0 | E11: ='[2]Дневной рацион, Дети до 3х лет'!G9 -> 118.007 | F11: ='[2]Дневной рацион, Дети до 3х лет'!H9 -> 2.237 | G11: ='[2]Дневной рацион, Дети до 3х лет'!I9 -> 4.25
B12: ='[2]Дневной рацион, Дети до 3х лет'!D10 -> Компот из сушеных фруктов (изюм). | C12: ='[2]Дневной рацион, Дети до 3х лет'!E10 -> 177 | D12: ='[2]Дневной рацион, Дети до 3х лет'!F10 -> 0 | E12: ='[2]Дневной рацион, Дети до 3х лет'!G10 -> 18.09 | F12: ='[2]Дневной рацион, Дети до 3х лет'!H10 -> 0.319 | G12: ='[2]Дневной рацион, Дети до 3х лет'!I10 -> 0.018
B13: ='[2]Дневной рацион, Дети до 3х лет'!D11 -> Котлеты рыбные запеченные . | C13: ='[2]Дневной рацион, Дети до 3х лет'!E11 -> 51 | D13: ='[2]Дневной рацион, Дети до 3х лет'!F11 -> 0 | E13: ='[2]Дневной рацион, Дети до 3х лет'!G11 -> 51.32 | F13: ='[2]Дневной рацион, Дети до 3х лет'!H11 -> 5.61 | G13: ='[2]Дневной рацион, Дети до 3х лет'!I11 -> 2.168
B14: ='[2]Дневной рацион, Дети до 3х лет'!D12 -> Хлеб пшеничный | C14: ='[2]Дневной рацион, Дети до 3х лет'!E12 -> 20 | D14: ='[2]Дневной рацион, Дети до 3х лет'!F12 -> 0 | E14: ='[2]Дневной рацион, Дети до 3х лет'!G12 -> 0 | F14: ='[2]Дневной рацион, Дети до 3х лет'!H12 -> 0 | G14: ='[2]Дневной рацион, Дети до 3х лет'!I12 -> 0
B15: ='[2]Дневной рацион, Дети до 3х лет'!D13 -> Хлеб ржаной | C15: ='[2]Дневной рацион, Дети до 3х лет'!E13 -> 23 | D15: ='[2]Дневной рацион, Дети до 3х лет'!F13 -> 0 | E15: ='[2]Дневной рацион, Дети до 3х лет'!G13 -> 0 | F15: ='[2]Дневной рацион, Дети до 3х лет'!H13 -> 0 | G15: ='[2]Дневной рацион, Дети до 3х лет'!I13 -> 0
A17: Полдник | B17: ='[3]Дневной рацион, Дети 3-7 лет, '!D15 -> Снежок | C17: ='[3]Дневной рацион, Дети 3-7 лет, '!E15 -> 179 | D17: ='[2]Дневной рацион, Дети до 3х лет'!F14 -> 0 | E17: ='[2]Дневной рацион, Дети до 3х лет'!G14 -> 146.4 | F17: ='[2]Дневной рацион, Дети до 3х лет'!H14 -> 2.36 | G17: ='[2]Дневной рацион, Дети до 3х лет'!I14 -> 0
B18: ='[3]Дневной рацион, Дети 3-7 лет, '!D16 -> Печенье весовое | C18: ='[3]Дневной рацион, Дети 3-7 лет, '!E16 -> 39 | D18: ='[2]Дневной рацион, Дети до 3х лет'!F15 -> 0 | E18: ='[2]Дневной рацион, Дети до 3х лет'!G15 -> 90.1 | F18: ='[2]Дневной рацион, Дети до 3х лет'!H15 -> 4.93 | G18: ='[2]Дневной рацион, Дети до 3х лет'!I15 -> 4.25
A20: Ужин | B20: ='[2]Дневной рацион, Дети до 3х лет'!D16 -> Горошница с маслом. | C20: ='[2]Дневной рацион, Дети до 3х лет'!E16 -> 101 | D20: ='[2]Дневной рацион, Дети до 3х лет'!F16 -> 0 | E20: ='[2]Дневной рацион, Дети до 3х лет'!G16 -> 137.9 | F20: ='[2]Дневной рацион, Дети до 3х лет'!H16 -> 9.764 | G20: ='[2]Дневной рацион, Дети до 3х лет'!I16 -> 0.876
B21: ='[2]Дневной рацион, Дети до 3х лет'!D17 -> Хлеб пшеничный | C21: ='[2]Дневной рацион, Дети до 3х лет'!E17 -> 20 | D21: ='[2]Дневной рацион, Дети до 3х лет'!F17 -> 0 | E21: ='[2]Дневной рацион, Дети до 3х лет'!G17 -> 0 | F21: ='[2]Дневной рацион, Дети до 3х лет'!H17 -> 0 | G21: ='[2]Дневной рацион, Дети до 3х лет'!I17 -> 0
B22: ='[3]Дневной рацион, Дети 3-7 лет, '!D18 -> Напиток клюквенный. | C22: ='[3]Дневной рацион, Дети 3-7 лет, '!E18 -> 198 | D22: ='[2]Дневной рацион, Дети до 3х лет'!F18 -> 0 | E22: ='[2]Дневной рацион, Дети до 3х лет'!G18 -> 29.913 | F22: ='[2]Дневной рацион, Дети до 3х лет'!H18 -> 0.254 | G22: ='[2]Дневной рацион, Дети до 3х лет'!I18 -> 0.085
B23: ='[2]Дневной рацион, Дети до 3х лет'!D19 -> 0 | C23: ='[2]Дневной рацион, Дети до 3х лет'!E19 -> 0 | D23: ='[2]Дневной рацион, Дети до 3х лет'!F19 -> 0 | E23: ='[2]Дневной рацион, Дети до 3х лет'!G19 -> 0 | F23: ='[2]Дневной рацион, Дети до 3х лет'!H19 -> 0 | G23: ='[2]Дневной рацион, Дети до 3х лет'!I19 -> 0
